[Event "Titled Tuesday Blitz August 1 Late 2023"]
[White "Vila Dupla, Aurelio"]
[Black "Rodriguez Santiago, Jaime"]
[WhiteFideId "2203383"]
[BlackFideId "3100898"]
[WhiteElo "2145"]
[BlackElo "2363"]
[Result "0-1"]
[Round "3"]
[TimeControl "180+1"]
[Date "2023.08.01"]
[WhiteClock "0:00:01"]
[BlackClock "0:00:11"]
[Board "179"]

1. Nf3 {[%clk 0:03:00]}  Nf6 {[%clk 0:02:58]} 2. d4 {[%clk 0:03:00]}  d5 {[%clk 0:02:58]} 3. c4 {[%clk 0:02:58]}  e6 {[%clk 0:02:43]} 4. cxd5 {[%clk 0:02:57]}  exd5 {[%clk 0:02:40]} 5. Nc3 {[%clk 0:02:58]}  c6 {[%clk 0:02:40]} 6. Qc2 {[%clk 0:02:58]}  Bd6 {[%clk 0:02:39]} 7. Bg5 {[%clk 0:02:58]}  Nbd7 {[%clk 0:02:36]} 8. e3 {[%clk 0:02:57]}  O-O {[%clk 0:02:35]} 9. Bd3 {[%clk 0:02:57]}  h6 {[%clk 0:02:34]} 10. Bh4 {[%clk 0:02:55]}  Re8 {[%clk 0:02:34]} 11. O-O-O {[%clk 0:02:46]}  b5 {[%clk 0:02:31]} 12. Kb1 {[%clk 0:02:46]}  a5 {[%clk 0:02:17]} 13. g4 {[%clk 0:02:44]}  b4 {[%clk 0:02:10]} 14. Na4 {[%clk 0:02:34]}  Qc7 {[%clk 0:02:07]} 15. g5 {[%clk 0:02:27]}  hxg5 {[%clk 0:02:05]} 16. Nxg5 {[%clk 0:02:27]}  c5 {[%clk 0:01:47]} 17. Nxc5 {[%clk 0:02:11]}  Nxc5 {[%clk 0:01:44]} 18. dxc5 {[%clk 0:02:08]}  Qxc5 {[%clk 0:01:42]} 19. Qxc5 {[%clk 0:02:07]}  Bxc5 {[%clk 0:01:41]} 20. Rc1 {[%clk 0:02:07]}  Bd6 {[%clk 0:01:33]} 21. Bg3 {[%clk 0:02:07]}  Bxg3 {[%clk 0:01:21]} 22. hxg3 {[%clk 0:02:08]}  Ne4 {[%clk 0:01:20]} 23. Bxe4 {[%clk 0:01:41]}  dxe4 {[%clk 0:01:19]} 24. Rh4 {[%clk 0:01:41]}  Bf5 {[%clk 0:01:04]} 25. Rch1 {[%clk 0:01:37]}  Kf8 {[%clk 0:01:03]} 26. Rf4 {[%clk 0:01:31]}  Bg6 {[%clk 0:00:45]} 27. Rh8+ {[%clk 0:01:30]}  Ke7 {[%clk 0:00:45]} 28. Rxe8+ {[%clk 0:01:11]}  Rxe8 {[%clk 0:00:44]} 29. Nxe4 {[%clk 0:01:07]}  Kd7 {[%clk 0:00:44]} 30. f3 {[%clk 0:01:07]}  f5 {[%clk 0:00:44]} 31. Nd2 {[%clk 0:00:49]}  Rxe3 {[%clk 0:00:43]} 32. Kc2 {[%clk 0:00:49]}  Re2 {[%clk 0:00:38]} 33. Kd1 {[%clk 0:00:47]}  Rg2 {[%clk 0:00:38]} 34. Nf1 {[%clk 0:00:46]}  Rxb2 {[%clk 0:00:37]} 35. g4 {[%clk 0:00:45]}  fxg4 {[%clk 0:00:36]} 36. Rxg4 {[%clk 0:00:45]}  Bd3 {[%clk 0:00:33]} 37. Rxg7+ {[%clk 0:00:43]}  Kc6 {[%clk 0:00:33]} 38. Ne3 {[%clk 0:00:43]}  Rxa2 {[%clk 0:00:32]} 39. Rg8 {[%clk 0:00:43]}  Be2+ {[%clk 0:00:32]} 40. Kc1 {[%clk 0:00:41]}  Bxf3 {[%clk 0:00:32]} 41. Rc8+ {[%clk 0:00:41]}  Kb5 {[%clk 0:00:32]} 42. Rb8+ {[%clk 0:00:40]}  Ka4 {[%clk 0:00:32]} 43. Nc4 {[%clk 0:00:41]}  Be4 {[%clk 0:00:28]} 44. Nd2 {[%clk 0:00:40]}  Rc2+ {[%clk 0:00:27]} 45. Kd1 {[%clk 0:00:40]}  Bg6 {[%clk 0:00:26]} 46. Rg8 {[%clk 0:00:38]}  Rc6 {[%clk 0:00:25]} 47. Rb8 {[%clk 0:00:32]}  b3 {[%clk 0:00:23]} 48. Ke2 {[%clk 0:00:25]}  Rc2 {[%clk 0:00:21]} 49. Ke3 {[%clk 0:00:23]}  Bf7 {[%clk 0:00:20]} 50. Rb7 {[%clk 0:00:19]}  Bd5 {[%clk 0:00:18]} 51. Rd7 {[%clk 0:00:14]}  Bc6 {[%clk 0:00:18]} 52. Rd4+ {[%clk 0:00:14]}  Ka3 {[%clk 0:00:18]} 53. Rd3 {[%clk 0:00:09]}  a4 {[%clk 0:00:18]} 54. Nb1+ {[%clk 0:00:08]}  Kb2 {[%clk 0:00:17]} 55. Nd2 {[%clk 0:00:06]}  Bb5 {[%clk 0:00:13]} 56. Rd5 {[%clk 0:00:05]}  Rc3+ {[%clk 0:00:12]} 57. Kd4 {[%clk 0:00:04]}  Rd3+ {[%clk 0:00:11]} 58. Kc5 {[%clk 0:00:05]}  Rxd5+ {[%clk 0:00:11]} 59. Kxd5 {[%clk 0:00:01]}  a3 {[%clk 0:00:11]} 0-1


[Site "https://www.chess.com"]

[Event "Titled Tuesday Blitz August 1 Late 2023"]
[White "Rego, Pedro Filipe"]
[Black "Ardito, Andrew"]
[WhiteFideId "1904310"]
[BlackFideId "2033976"]
[WhiteElo "2359"]
[BlackElo "2107"]
[Result "1/2-1/2"]
[Round "3"]
[TimeControl "180+1"]
[Date "2023.08.01"]
[WhiteClock "0:00:35"]
[BlackClock "0:00:06"]
[Board "181"]

1. d4 {[%clk 0:03:00]}  Nf6 {[%clk 0:02:45]} 2. Bf4 {[%clk 0:02:59]}  d6 {[%clk 0:02:44]} 3. Nf3 {[%clk 0:02:55]}  c6 {[%clk 0:02:41]} 4. e3 {[%clk 0:02:54]}  Bf5 {[%clk 0:02:38]} 5. Bd3 {[%clk 0:02:53]}  Qd7 {[%clk 0:02:35]} 6. O-O {[%clk 0:02:52]}  h6 {[%clk 0:02:27]} 7. h3 {[%clk 0:02:52]}  g5 {[%clk 0:02:27]} 8. Bh2 {[%clk 0:02:43]}  Bg7 {[%clk 0:02:20]} 9. Bxf5 {[%clk 0:02:41]}  Qxf5 {[%clk 0:02:20]} 10. Qd3 {[%clk 0:02:42]}  Qxd3 {[%clk 0:02:18]} 11. cxd3 {[%clk 0:02:43]}  Na6 {[%clk 0:02:11]} 12. a3 {[%clk 0:02:42]}  b5 {[%clk 0:02:05]} 13. Nc3 {[%clk 0:02:43]}  Kd7 {[%clk 0:02:03]} 14. Ne4 {[%clk 0:02:39]}  g4 {[%clk 0:01:51]} 15. Nxf6+ {[%clk 0:02:33]}  Bxf6 {[%clk 0:01:51]} 16. hxg4 {[%clk 0:02:33]}  Rag8 {[%clk 0:01:50]} 17. g5 {[%clk 0:02:32]}  hxg5 {[%clk 0:01:48]} 18. Nd2 {[%clk 0:02:27]}  Rh6 {[%clk 0:01:40]} 19. Bg3 {[%clk 0:02:25]}  g4 {[%clk 0:01:35]} 20. Rfc1 {[%clk 0:02:19]}  Rgh8 {[%clk 0:01:34]} 21. Kf1 {[%clk 0:02:19]}  d5 {[%clk 0:01:22]} 22. Ke2 {[%clk 0:02:19]}  Bh4 {[%clk 0:01:09]} 23. Bf4 {[%clk 0:02:19]}  R6h7 {[%clk 0:00:54]} 24. Nb3 {[%clk 0:02:19]}  f6 {[%clk 0:00:46]} 25. Nc5+ {[%clk 0:02:18]}  Nxc5 {[%clk 0:00:46]} 26. Rxc5 {[%clk 0:02:19]}  Bg5 {[%clk 0:00:43]} 27. Rac1 {[%clk 0:02:07]}  Bxf4 {[%clk 0:00:40]} 28. exf4 {[%clk 0:02:08]}  Rc8 {[%clk 0:00:39]} 29. b3 {[%clk 0:01:46]}  a6 {[%clk 0:00:37]} 30. a4 {[%clk 0:01:44]}  Rh2 {[%clk 0:00:32]} 31. g3 {[%clk 0:01:43]}  f5 {[%clk 0:00:23]} 32. axb5 {[%clk 0:01:41]}  axb5 {[%clk 0:00:24]} 33. Ra1 {[%clk 0:01:41]}  Rc7 {[%clk 0:00:19]} 34. Rcc1 {[%clk 0:01:37]}  Rh6 {[%clk 0:00:18]} 35. Ra8 {[%clk 0:01:35]}  Re6+ {[%clk 0:00:17]} 36. Kd2 {[%clk 0:01:34]}  Rh6 {[%clk 0:00:17]} 37. Rca1 {[%clk 0:01:28]}  Rh2 {[%clk 0:00:17]} 38. Ke3 {[%clk 0:01:28]}  Rh6 {[%clk 0:00:13]} 39. b4 {[%clk 0:01:24]}  Re6+ {[%clk 0:00:12]} 40. Kd2 {[%clk 0:01:25]}  Rh6 {[%clk 0:00:13]} 41. Rf8 {[%clk 0:01:22]}  Rf6 {[%clk 0:00:11]} 42. Rxf6 {[%clk 0:01:12]}  exf6 {[%clk 0:00:12]} 43. Ra6 {[%clk 0:01:10]}  Kd6 {[%clk 0:00:10]} 44. Ra8 {[%clk 0:01:07]}  Re7 {[%clk 0:00:09]} 45. Rf8 {[%clk 0:01:06]}  Ke6 {[%clk 0:00:10]} 46. Rc8 {[%clk 0:01:06]}  Kd7 {[%clk 0:00:10]} 47. Rh8 {[%clk 0:01:04]}  Kd6 {[%clk 0:00:08]} 48. Ra8 {[%clk 0:01:02]}  Rh7 {[%clk 0:00:04]} 49. Ra1 {[%clk 0:00:56]}  Rh2 {[%clk 0:00:04]} 50. Ke3 {[%clk 0:00:56]}  Rh7 {[%clk 0:00:03]} 51. Ke2 {[%clk 0:00:51]}  Re7+ {[%clk 0:00:04]} 52. Kf1 {[%clk 0:00:51]}  Rh7 {[%clk 0:00:04]} 53. Kg2 {[%clk 0:00:51]}  Re7 {[%clk 0:00:05]} 54. Kf1 {[%clk 0:00:47]}  Rh7 {[%clk 0:00:05]} 55. Ke2 {[%clk 0:00:46]}  Re7+ {[%clk 0:00:05]} 56. Kd2 {[%clk 0:00:47]}  Rh7 {[%clk 0:00:05]} 57. Re1 {[%clk 0:00:45]}  Rh2 {[%clk 0:00:05]} 58. Ke3 {[%clk 0:00:43]}  Rh7 {[%clk 0:00:04]} 59. Ra1 {[%clk 0:00:42]}  Rh2 {[%clk 0:00:04]} 60. Kd2 {[%clk 0:00:43]}  Rxf2+ {[%clk 0:00:04]} 61. Kc3 {[%clk 0:00:43]}  Rf3 {[%clk 0:00:04]} 62. Rg1 {[%clk 0:00:43]}  Rf2 {[%clk 0:00:04]} 63. Kb3 {[%clk 0:00:41]}  Rd2 {[%clk 0:00:05]} 64. Kc3 {[%clk 0:00:42]}  Ra2 {[%clk 0:00:05]} 65. Kb3 {[%clk 0:00:42]}  Re2 {[%clk 0:00:06]} 66. Kc3 {[%clk 0:00:42]}  Re3 {[%clk 0:00:07]} 67. Kd2 {[%clk 0:00:41]}  Rf3 {[%clk 0:00:07]} 68. Ke2 {[%clk 0:00:41]}  Ke7 {[%clk 0:00:06]} 69. Rg2 {[%clk 0:00:41]}  Kd6 {[%clk 0:00:06]} 70. Rg1 {[%clk 0:00:35]}  Ke6 {[%clk 0:00:06]} 1/2-1/2


[Site "https://www.chess.com"]

[Event "Titled Tuesday Blitz August 1 Late 2023"]
[White "ayme97"]
[Black "Mushini Ajay"]
[BlackFideId "35066188"]
[WhiteElo "2141"]
[BlackElo "2354"]
[Result "0-1"]
[Round "3"]
[TimeControl "180+1"]
[Date "2023.08.01"]
[WhiteClock "0:00:00"]
[BlackClock "0:00:08"]
[Board "182"]

1. d4 {[%clk 0:03:00]}  Nf6 {[%clk 0:02:58]} 2. c4 {[%clk 0:03:00]}  c5 {[%clk 0:02:57]} 3. d5 {[%clk 0:03:00]}  b5 {[%clk 0:02:57]} 4. cxb5 {[%clk 0:02:55]}  a6 {[%clk 0:02:58]} 5. b6 {[%clk 0:02:55]}  g6 {[%clk 0:02:56]} 6. Nc3 {[%clk 0:02:55]}  d6 {[%clk 0:02:56]} 7. Qb3 {[%clk 0:02:53]}  Bb7 {[%clk 0:02:48]} 8. a4 {[%clk 0:02:53]}  a5 {[%clk 0:02:47]} 9. e4 {[%clk 0:02:52]}  Bg7 {[%clk 0:02:47]} 10. Nf3 {[%clk 0:02:47]}  O-O {[%clk 0:02:46]} 11. Be2 {[%clk 0:02:45]}  Na6 {[%clk 0:02:45]} 12. Nd2 {[%clk 0:02:43]}  Nb4 {[%clk 0:02:43]} 13. Nc4 {[%clk 0:02:43]}  e6 {[%clk 0:02:31]} 14. dxe6 {[%clk 0:02:31]}  d5 {[%clk 0:02:24]} 15. exd5 {[%clk 0:02:25]}  fxe6 {[%clk 0:02:17]} 16. Bf4 {[%clk 0:02:04]}  Nfxd5 {[%clk 0:02:15]} 17. Nxd5 {[%clk 0:02:02]}  exd5 {[%clk 0:01:21]} 18. Bc7 {[%clk 0:01:56]}  Qf6 {[%clk 0:00:49]} 19. Bf3 {[%clk 0:01:15]}  Rae8+ {[%clk 0:00:35]} 20. Ne3 {[%clk 0:01:14]}  c4 {[%clk 0:00:20]} 21. Qc3 {[%clk 0:00:45]}  Qxc3+ {[%clk 0:00:19]} 22. bxc3 {[%clk 0:00:45]}  Nc2+ {[%clk 0:00:18]} 23. Kd2 {[%clk 0:00:42]}  Nxa1 {[%clk 0:00:19]} 24. Rxa1 {[%clk 0:00:41]}  d4 {[%clk 0:00:19]} 25. Bxb7 {[%clk 0:00:39]}  dxe3+ {[%clk 0:00:18]} 26. fxe3 {[%clk 0:00:37]}  Rf2+ {[%clk 0:00:17]} 27. Ke1 {[%clk 0:00:36]}  Rb2 {[%clk 0:00:17]} 28. e4 {[%clk 0:00:31]}  Bxc3+ {[%clk 0:00:15]} 29. Kf1 {[%clk 0:00:28]}  Rf8+ {[%clk 0:00:14]} 30. Kg1 {[%clk 0:00:26]}  Rxg2+ {[%clk 0:00:14]} 31. Kxg2 {[%clk 0:00:25]}  Bxa1 {[%clk 0:00:15]} 32. Bd5+ {[%clk 0:00:24]}  Kh8 {[%clk 0:00:14]} 33. Bxc4 {[%clk 0:00:24]}  Bd4 {[%clk 0:00:14]} 34. Be6 {[%clk 0:00:18]}  Rf2+ {[%clk 0:00:13]} 35. Kg3 {[%clk 0:00:17]}  Rb2 {[%clk 0:00:13]} 36. Bd5 {[%clk 0:00:15]}  h5 {[%clk 0:00:12]} 37. b7 {[%clk 0:00:15]}  Ba7 {[%clk 0:00:11]} 38. Bxa5 {[%clk 0:00:09]}  Bb8+ {[%clk 0:00:11]} 39. Kf3 {[%clk 0:00:09]}  Rxh2 {[%clk 0:00:09]} 40. Bb6 {[%clk 0:00:07]}  Rh3+ {[%clk 0:00:09]} 41. Kg2 {[%clk 0:00:07]}  Ra3 {[%clk 0:00:10]} 42. a5 {[%clk 0:00:07]}  h4 {[%clk 0:00:09]} 43. Be6 {[%clk 0:00:04]}  h3+ {[%clk 0:00:09]} 44. Bxh3 {[%clk 0:00:04]}  Rg3+ {[%clk 0:00:09]} 45. Kh2 {[%clk 0:00:00]}  Re3+ {[%clk 0:00:08]} 0-1


[Site "https://www.chess.com"]

[Event "Titled Tuesday Blitz August 1 Late 2023"]
[White "Romero Arzuaga, Yudel"]
[Black "Hartikainen, Jarmo"]
[WhiteFideId "3521010"]
[BlackFideId "503134"]
[WhiteElo "2349"]
[BlackElo "2079"]
[Result "0-1"]
[Round "3"]
[TimeControl "180+1"]
[Date "2023.08.01"]
[WhiteClock "0:01:15"]
[BlackClock "0:00:20"]
[Board "184"]

1. d4 {[%clk 0:02:59]}  Nf6 {[%clk 0:02:59]} 2. Nf3 {[%clk 0:02:59]}  e6 {[%clk 0:02:59]} 3. Bg5 {[%clk 0:02:54]}  c5 {[%clk 0:02:57]} 4. e3 {[%clk 0:02:53]}  Qb6 {[%clk 0:02:55]} 5. Nbd2 {[%clk 0:02:50]}  cxd4 {[%clk 0:02:49]} 6. exd4 {[%clk 0:02:49]}  Qxb2 {[%clk 0:02:45]} 7. Bd3 {[%clk 0:02:49]}  Be7 {[%clk 0:02:37]} 8. O-O {[%clk 0:02:48]}  Nc6 {[%clk 0:02:30]} 9. Rb1 {[%clk 0:02:46]}  Qc3 {[%clk 0:01:59]} 10. Bxf6 {[%clk 0:02:42]}  gxf6 {[%clk 0:01:58]} 11. Ne4 {[%clk 0:02:41]}  Qa5 {[%clk 0:01:57]} 12. c4 {[%clk 0:02:39]}  Qh5 {[%clk 0:01:50]} 13. Ng3 {[%clk 0:02:38]}  Qh6 {[%clk 0:01:35]} 14. d5 {[%clk 0:02:34]}  Ne5 {[%clk 0:01:29]} 15. Nxe5 {[%clk 0:02:32]}  fxe5 {[%clk 0:01:30]} 16. Qe2 {[%clk 0:02:32]}  d6 {[%clk 0:01:18]} 17. c5 {[%clk 0:02:27]}  O-O {[%clk 0:00:59]} 18. cxd6 {[%clk 0:02:14]}  Bxd6 {[%clk 0:00:58]} 19. Ne4 {[%clk 0:02:06]}  exd5 {[%clk 0:00:54]} 20. Nxd6 {[%clk 0:02:00]}  Qxd6 {[%clk 0:00:54]} 21. Qh5 {[%clk 0:01:51]}  e4 {[%clk 0:00:47]} 22. f3 {[%clk 0:01:46]}  exd3 {[%clk 0:00:40]} 23. Rfd1 {[%clk 0:01:43]}  Qg6 {[%clk 0:00:32]} 24. Qxd5 {[%clk 0:01:38]}  Be6 {[%clk 0:00:32]} 25. Qxb7 {[%clk 0:01:37]}  Rad8 {[%clk 0:00:30]} 26. Qxa7 {[%clk 0:01:36]}  Bh3 {[%clk 0:00:19]} 27. Qf2 {[%clk 0:01:36]}  Rfe8 {[%clk 0:00:19]} 28. Rd2 {[%clk 0:01:32]}  Re2 {[%clk 0:00:19]} 29. Rxe2 {[%clk 0:01:23]}  dxe2 {[%clk 0:00:20]} 30. Re1 {[%clk 0:01:23]}  Rd1 {[%clk 0:00:20]} 31. g3 {[%clk 0:01:18]}  Rxe1+ {[%clk 0:00:20]} 32. Qxe1 {[%clk 0:01:19]}  Qb6+ {[%clk 0:00:20]} 33. Kh1 {[%clk 0:01:15]}  Qe3 {[%clk 0:00:20]} 0-1


[Site "https://www.chess.com"]

[Event "Titled Tuesday Blitz August 1 Late 2023"]
[White "Winkels, Marcel"]
[Black "Peatman, Carter"]
[WhiteFideId "1003887"]
[BlackFideId "2096480"]
[WhiteElo "2079"]
[BlackElo "2344"]
[Result "0-1"]
[Round "3"]
[TimeControl "180+1"]
[Date "2023.08.01"]
[WhiteClock "0:00:00"]
[BlackClock "0:00:55"]
[Board "186"]

1. e4 {[%clk 0:03:00]}  e5 {[%clk 0:02:59]} 2. Nf3 {[%clk 0:03:00]}  Nf6 {[%clk 0:02:59]} 3. d4 {[%clk 0:02:55]}  Nxe4 {[%clk 0:02:58]} 4. Bd3 {[%clk 0:02:55]}  Nc6 {[%clk 0:02:58]} 5. dxe5 {[%clk 0:02:50]}  d5 {[%clk 0:02:50]} 6. c4 {[%clk 0:02:43]}  Bb4+ {[%clk 0:02:48]} 7. Nbd2 {[%clk 0:02:38]}  Be6 {[%clk 0:02:38]} 8. cxd5 {[%clk 0:02:33]}  Bxd5 {[%clk 0:02:36]} 9. Qe2 {[%clk 0:02:10]}  Nxd2 {[%clk 0:02:27]} 10. Bxd2 {[%clk 0:02:09]}  Bxd2+ {[%clk 0:02:15]} 11. Qxd2 {[%clk 0:02:06]}  Bxf3 {[%clk 0:02:00]} 12. gxf3 {[%clk 0:02:02]}  Nxe5 {[%clk 0:01:56]} 13. Bb5+ {[%clk 0:01:57]}  c6 {[%clk 0:01:55]} 14. Qe3 {[%clk 0:01:57]}  Qa5+ {[%clk 0:01:35]} 15. Kf1 {[%clk 0:01:30]}  Qxb5+ {[%clk 0:01:31]} 16. Kg2 {[%clk 0:01:30]}  O-O {[%clk 0:01:29]} 17. Rhg1 {[%clk 0:01:28]}  Rfe8 {[%clk 0:01:25]} 18. Kh1 {[%clk 0:01:27]}  Qd5 {[%clk 0:01:22]} 19. Rg3 {[%clk 0:01:26]}  Ng6 {[%clk 0:01:17]} 20. Qc3 {[%clk 0:01:23]}  Re6 {[%clk 0:01:16]} 21. Rag1 {[%clk 0:01:20]}  Rae8 {[%clk 0:01:16]} 22. h3 {[%clk 0:01:10]}  a5 {[%clk 0:01:12]} 23. Kh2 {[%clk 0:01:07]}  a4 {[%clk 0:01:10]} 24. b3 {[%clk 0:01:04]}  axb3 {[%clk 0:01:09]} 25. axb3 {[%clk 0:01:04]}  b5 {[%clk 0:01:09]} 26. b4 {[%clk 0:01:02]}  Re2 {[%clk 0:01:08]} 27. R1g2 {[%clk 0:00:59]}  Qe6 {[%clk 0:01:03]} 28. h4 {[%clk 0:00:48]}  Qd5 {[%clk 0:01:02]} 29. Rg5 {[%clk 0:00:43]}  R2e5 {[%clk 0:01:02]} 30. Qc1 {[%clk 0:00:20]}  Rxg5 {[%clk 0:01:00]} 31. Rxg5 {[%clk 0:00:17]}  Qxf3 {[%clk 0:00:57]} 32. h5 {[%clk 0:00:02]}  Qxf2+ {[%clk 0:00:57]} 33. Kh1 {[%clk 0:00:00]}  Re1+ {[%clk 0:00:55]} 0-1


[Site "https://www.chess.com"]

[Event "Titled Tuesday Blitz August 1 Late 2023"]
[White "Djordjevic, Dejan N"]
[Black "Gerbelli Neto, Eduardo"]
[WhiteFideId "913316"]
[BlackFideId "2103281"]
[WhiteElo "2068"]
[BlackElo "2343"]
[Result "1-0"]
[Round "3"]
[TimeControl "180+1"]
[Date "2023.08.01"]
[WhiteClock "0:00:16"]
[BlackClock "0:00:17"]
[Board "187"]

1. e4 {[%clk 0:03:00]}  e5 {[%clk 0:02:59]} 2. Nf3 {[%clk 0:03:00]}  Nc6 {[%clk 0:02:59]} 3. Bc4 {[%clk 0:03:00]}  Nf6 {[%clk 0:02:59]} 4. d3 {[%clk 0:03:00]}  Bc5 {[%clk 0:02:58]} 5. O-O {[%clk 0:03:00]}  d6 {[%clk 0:02:58]} 6. c3 {[%clk 0:03:00]}  a5 {[%clk 0:02:58]} 7. Re1 {[%clk 0:03:00]}  O-O {[%clk 0:02:59]} 8. Nbd2 {[%clk 0:02:59]}  Ng4 {[%clk 0:02:59]} 9. Re2 {[%clk 0:02:58]}  Kh8 {[%clk 0:02:53]} 10. h3 {[%clk 0:02:58]}  f5 {[%clk 0:02:45]} 11. Nb3 {[%clk 0:02:34]}  Nxf2 {[%clk 0:02:23]} 12. Rxf2 {[%clk 0:02:29]}  Bxf2+ {[%clk 0:02:24]} 13. Kxf2 {[%clk 0:02:28]}  fxe4 {[%clk 0:02:24]} 14. dxe4 {[%clk 0:02:27]}  Qh4+ {[%clk 0:02:03]} 15. Ke3 {[%clk 0:02:10]}  Qg3 {[%clk 0:01:56]} 16. Qe2 {[%clk 0:01:56]}  Ne7 {[%clk 0:01:32]} 17. Nd2 {[%clk 0:01:28]}  c6 {[%clk 0:01:24]} 18. Nf1 {[%clk 0:01:24]}  Qg6 {[%clk 0:01:23]} 19. Kd2 {[%clk 0:01:16]}  b5 {[%clk 0:01:23]} 20. Bd3 {[%clk 0:01:15]}  Be6 {[%clk 0:01:15]} 21. Kc2 {[%clk 0:01:13]}  a4 {[%clk 0:01:14]} 22. Be3 {[%clk 0:00:48]}  h6 {[%clk 0:01:13]} 23. N1d2 {[%clk 0:00:38]}  Qf7 {[%clk 0:00:59]} 24. a3 {[%clk 0:00:36]}  Ng6 {[%clk 0:00:58]} 25. Rf1 {[%clk 0:00:35]}  Nf4 {[%clk 0:00:52]} 26. Bxf4 {[%clk 0:00:34]}  exf4 {[%clk 0:00:53]} 27. Nd4 {[%clk 0:00:33]}  Bd7 {[%clk 0:00:47]} 28. N2f3 {[%clk 0:00:24]}  Rab8 {[%clk 0:00:41]} 29. Kc1 {[%clk 0:00:23]}  Qa2 {[%clk 0:00:25]} 30. Bb1 {[%clk 0:00:22]}  Qf7 {[%clk 0:00:25]} 31. Nh4 {[%clk 0:00:22]}  c5 {[%clk 0:00:24]} 32. Ndf5 {[%clk 0:00:21]}  d5 {[%clk 0:00:21]} 33. exd5 {[%clk 0:00:19]}  Qxd5 {[%clk 0:00:20]} 34. Ng6+ {[%clk 0:00:17]}  Kg8 {[%clk 0:00:19]} 35. Nxf8 {[%clk 0:00:16]}  Rxf8 {[%clk 0:00:17]} 36. Ne7+ {[%clk 0:00:16]} 1-0


[Site "https://www.chess.com"]

[Event "Titled Tuesday Blitz August 1 Late 2023"]
[White "Chabris, Christopher"]
[Black "Joubert, Dantelle"]
[WhiteFideId "2005263"]
[BlackFideId "14310813"]
[WhiteElo "2340"]
[BlackElo "2050"]
[Result "1/2-1/2"]
[Round "3"]
[TimeControl "180+1"]
[Date "2023.08.01"]
[WhiteClock "0:00:11"]
[BlackClock "0:00:12"]
[Board "189"]

1. e4 {[%clk 0:03:00]}  c5 {[%clk 0:02:58]} 2. Nf3 {[%clk 0:03:00]}  d6 {[%clk 0:02:58]} 3. Bb5+ {[%clk 0:02:59]}  Bd7 {[%clk 0:02:58]} 4. Bxd7+ {[%clk 0:02:59]}  Nxd7 {[%clk 0:02:57]} 5. O-O {[%clk 0:03:00]}  g6 {[%clk 0:02:56]} 6. c3 {[%clk 0:02:59]}  Bg7 {[%clk 0:02:56]} 7. d4 {[%clk 0:02:59]}  cxd4 {[%clk 0:02:54]} 8. cxd4 {[%clk 0:02:59]}  Ngf6 {[%clk 0:02:54]} 9. Qe2 {[%clk 0:02:55]}  O-O {[%clk 0:02:51]} 10. Nc3 {[%clk 0:02:54]}  a6 {[%clk 0:02:50]} 11. e5 {[%clk 0:02:51]}  Ne8 {[%clk 0:02:49]} 12. e6 {[%clk 0:02:49]}  fxe6 {[%clk 0:02:37]} 13. Qxe6+ {[%clk 0:02:45]}  Kh8 {[%clk 0:02:36]} 14. Ng5 {[%clk 0:02:37]}  Nc7 {[%clk 0:01:38]} 15. Nf7+ {[%clk 0:02:02]}  Rxf7 {[%clk 0:01:37]} 16. Qxf7 {[%clk 0:02:02]}  Bxd4 {[%clk 0:01:37]} 17. Be3 {[%clk 0:01:39]}  Bg7 {[%clk 0:01:27]} 18. f4 {[%clk 0:01:35]}  Qf8 {[%clk 0:01:13]} 19. Qc4 {[%clk 0:01:30]}  Rc8 {[%clk 0:01:06]} 20. Rac1 {[%clk 0:01:29]}  Nb5 {[%clk 0:00:56]} 21. Qe6 {[%clk 0:01:22]}  Nxc3 {[%clk 0:00:50]} 22. bxc3 {[%clk 0:01:21]}  Nc5 {[%clk 0:00:46]} 23. Bxc5 {[%clk 0:01:14]}  Rxc5 {[%clk 0:00:46]} 24. c4 {[%clk 0:01:14]}  Bd4+ {[%clk 0:00:35]} 25. Kh1 {[%clk 0:01:13]}  Qf6 {[%clk 0:00:36]} 26. Qd7 {[%clk 0:00:56]}  Rh5 {[%clk 0:00:31]} 27. Rce1 {[%clk 0:00:44]}  e5 {[%clk 0:00:21]} 28. Qg4 {[%clk 0:00:31]}  Rf5 {[%clk 0:00:16]} 29. g3 {[%clk 0:00:24]}  e4 {[%clk 0:00:16]} 30. Qe2 {[%clk 0:00:20]}  e3 {[%clk 0:00:15]} 31. Qf3 {[%clk 0:00:19]}  Qf7 {[%clk 0:00:14]} 32. Rxe3 {[%clk 0:00:14]}  Bxe3 {[%clk 0:00:14]} 33. Qxe3 {[%clk 0:00:14]}  Qxc4 {[%clk 0:00:11]} 34. Qe8+ {[%clk 0:00:13]}  Kg7 {[%clk 0:00:11]} 35. Re1 {[%clk 0:00:14]}  Qc6+ {[%clk 0:00:10]} 36. Qxc6 {[%clk 0:00:12]}  bxc6 {[%clk 0:00:11]} 37. Re6 {[%clk 0:00:12]}  Rd5 {[%clk 0:00:11]} 38. Kg2 {[%clk 0:00:11]}  Rd2+ {[%clk 0:00:11]} 39. Kf3 {[%clk 0:00:12]}  Rxa2 {[%clk 0:00:11]} 40. Rxd6 {[%clk 0:00:12]}  Rxh2 {[%clk 0:00:11]} 41. Rxc6 {[%clk 0:00:12]}  Ra2 {[%clk 0:00:11]} 42. g4 {[%clk 0:00:11]}  Ra3+ {[%clk 0:00:10]} 43. Ke4 {[%clk 0:00:11]}  Ra4+ {[%clk 0:00:11]} 44. Kf3 {[%clk 0:00:12]}  Ra3+ {[%clk 0:00:11]} 45. Ke4 {[%clk 0:00:11]}  Ra4+ {[%clk 0:00:12]} 46. Kf3 {[%clk 0:00:11]}  Ra3+ {[%clk 0:00:12]} 1/2-1/2


[Site "https://www.chess.com"]